bitfinex/quotes_SOLUSD_20240921
["timestamp","ask_amount","ask_price","bid_price","bid_amount"]
[1726932066266,0.29078573,148.11,148.07,6.7534]
[1726932066764,7.04258573,148.11,148.07,6.7534]
[1726932066966,0.12549,148.1,148.06,6.7539]
[1726932067345,6.87769,148.1,148.06,6.7539]
[1726932067547,1.68835374,148.09,148.06,6.7539]
[1726932068452,6.87769,148.1,148.06,6.7539]
[1726932068967,0.29078573,148.11,148.07,6.7534]
[1726932069156,0.29078573,148.11,148.08,1.35046298]
[1726932069359,0.29078573,148.11,148.09,6.7522]
[1726932075747,0.29078573,148.11,148.1,6.7521]
[1726932076066,0.29078573,148.11,148.1,31.8791645]
[1726932078784,0.54176573,148.11,148.04,16.8869]
[1726932078966,0.12549,148.1,148.05,1.3507153]
[1726932079271,7.00348,148.1,148.05,6.7544]
[1726932079776,6.7527,148.09,148.05,6.7544]
[1726932079950,6.7527,148.09,148.04,23.6417]
[1726932080449,0.25098,148.1,148.04,16.8869]
[1726932080450,1.68840122,148.08,148.04,16.8869]
[1726932080671,1.68840122,148.08,148.01,16.8904]
[1726932081068,0.12549,148.06,148.01,16.8904]
[1726932081376,8.56856272,148.06,148.01,23.6462]
[1726932083678,6.87979,148.06,148.01,23.6462]
[1726932086553,6.7545,148.05,148.01,23.6462]
[1726932087073,23.24219,148.06,148.01,23.6462]
[1726932089982,23.24219,148.06,148.02,6.7558]
[1726932090396,22.4833,148.1,148.04,23.776884]
[1726932090689,22.4833,148.1,148.06,6.7536]
[1726932094279,0.12549,148.1,148.06,8.10417837]
[1726932095790,0.12549,148.1,148.06,6.7536]
[1726932097292,7.04258573,148.11,148.05,16.8855]
[1726932097293,0.29078573,148.11,148.07,6.7534]
[1726932097473,0.29078573,148.11,148.08,6.753]
[1726932100299,6.7537,148.07,148.03,6.755]
[1726932100509,0.25098,148.1,148.04,6.7548]
[1726932100510,6.7532,148.08,148.04,6.7548]
[1726932102719,6.7532,148.08,148.03,6.7553]
[1726932104910,7.00318,148.1,148.04,25.12770669]
[1726932105295,7.00318,148.1,148.04,23.776884]
[1726932105497,7.00318,148.1,148.05,1.35061241]
[1726932105811,7.00318,148.1,148.04,23.776884]
[1726932106321,7.00318,148.1,148.06,6.7538]
[1726932106533,0.29078573,148.11,148.07,16.8831]
[1726932106693,0.29078573,148.11,148.1,6.7521]
[1726932113620,0.29078573,148.11,148.1,8.10233775]
[1726932113914,0.29078573,148.11,148.1,6.7521]
[1726932114493,0.29078573,148.11,148.09,23.6336]
[1726932114707,0.29078573,148.11,148.09,16.8811]
[1726932115812,0.29078573,148.11,148.1,6.7521]
[1726932115994,0.29078573,148.11,148.1,8.1023628]
[1726932118436,0.29078573,148.11,148.09,23.6337]
[1726932120515,0.29078573,148.11,148.1,8.10242345]
[1726932120845,0.29078573,148.11,148.1,31.87930745]
[1726932121136,0.29078573,148.11,148.1,30.528984]
[1726932121531,0.29078573,148.11,148.1,31.8790388]
[1726932122209,0.29078573,148.11,148.1,49.70504684]
[1726932122416,0.29078573,148.11,148.1,50.93436795]
[1726932122714,0.29078573,148.11,148.1,71.18534795]
[1726932123126,0.3191011,148.14,148.1,71.18534795]
[1726932123127,0.3191011,148.14,148.13,83.857864]
[1726932123330,0.3529269,148.19,148.18,30.525384]
[1726932123538,0.3529269,148.19,148.18,47.396684]
[1726932123941,0.3529269,148.19,148.18,23.6198]
[1726932124636,0.3529269,148.19,148.18,16.8713]
[1726932125518,0.3529269,148.19,148.16,6.7494]
[1726932125835,0.3529269,148.19,148.17,6.749]
[1726932126337,0.3529269,148.19,148.18,7.9063805]
[1726932126542,0.3529269,148.19,148.18,6.7485]
[1726932126933,0.3529269,148.19,148.18,30.525384]
[1726932128924,0.3529269,148.19,148.18,6.7485]
[1726932129324,0.3529269,148.19,148.18,8.09793005]
[1726932129527,0.3529269,148.19,148.18,6.7485]
[1726932130850,0.3529269,148.19,148.18,30.525384]
[1726932131140,0.3529269,148.19,148.18,51.8746677]
[1726932133851,0.3529269,148.19,148.18,31.8746677]
[1726932134045,0.3529269,148.19,148.18,30.525384]
[1726932137239,0.3529269,148.19,148.18,6.7485]
[1726932137443,0.3529269,148.19,148.17,23.6204]
[1726932138830,0.3529269,148.19,148.15,6.7498]
[1726932139030,0.12549,148.18,148.14,16.8756]
[1726932139259,6.87439,148.18,148.14,16.8756]
[1726932139430,6.99988,148.18,148.14,16.8756]
[1726932139934,0.12549,148.18,148.15,0.81551317]
[1726932140753,0.12549,148.18,148.14,23.6258]
[1726932141935,7.1010269,148.19,148.14,23.6258]
[1726932143048,0.3529269,148.19,148.17,6.7489]
[1726932143252,0.3529269,148.19,148.17,8.09853561]
[1726932144147,0.3529269,148.19,148.17,1.34963561]
[1726932144458,0.3529269,148.19,148.16,6.7493]
[1726932144863,0.3529269,148.19,148.17,1.34962705]
[1726932145269,0.3529269,148.19,148.17,6.7488]
[1726932147464,0.3529269,148.19,148.18,6.7485]
[1726932149072,0.3529269,148.19,148.16,23.6221]
[1726932151650,0.3529269,148.19,148.18,6.7485]
[1726932156474,0.3529269,148.19,148.18,30.525384]
[1726932159679,0.3529269,148.19,148.18,6.7485]
[1726932164977,0.3529269,148.19,148.17,6.7488]
[1726932165159,6.87439,148.18,148.13,16.8764]
[1726932165364,6.87439,148.18,148.13,23.627]
[1726932165559,6.87439,148.18,148.11,6.7516]
[1726932165560,6.7495,148.16,148.11,6.7516]
[1726932165770,6.7495,148.16,148.1,16.8799]
[1726932165953,6.7495,148.16,148.12,6.7512]
[1726932166987,6.87449,148.17,148.12,6.7512]
[1726932168170,6.87449,148.17,148.13,6.7507]
[1726932168374,22.55169,148.18,148.14,1.34998011]
[1726932168578,22.55169,148.18,148.14,6.7503]
[1726932169279,29.30029,148.18,148.14,6.7503]
[1726932169658,6.87409,148.18,148.14,6.7503]
[1726932170758,0.12549,148.16,148.12,16.8771]
[1726932170963,6.87519,148.16,148.12,16.8771]
[1726932171159,8.43747779,148.15,148.1,6.752]
[1726932171480,6.7499,148.15,148.1,6.752]
[1726932171981,1.68767822,148.14,148.09,23.6338]
[1726932172485,0.12549,148.13,148.09,23.6338]
[1726932173289,6.87639,148.13,148.09,23.6338]
[1726932173977,0.12549,148.13,148.09,23.6338]
[1726932175286,0.12549,148.13,148.1,1.3503014]
[1726932175482,0.12549,148.13,148.09,23.6338]
[1726932176280,6.7504,148.14,148.1,6.752]
[1726932176677,6.75,148.15,148.1,6.752]
[1726932176861,0.12549,148.14,148.1,6.752]
[1726932177062,7.00038,148.16,148.11,8.10182733]
[1726932177593,0.12549,148.16,148.12,6.7511]
[1726932179666,6.87499,148.16,148.12,6.7511]
[1726932181281,6.87499,148.16,148.11,23.6304]
[1726932181588,0.12549,148.14,148.08,16.8822]
[1726932182389,6.87619,148.14,148.09,6.7525]
[1726932182683,1.68785506,148.13,148.09,6.7525]
[1726932184790,0.12549,148.12,148.08,16.8822]
[1726932185103,0.12549,148.12,148.05,16.8858]
[1726932186083,0.12549,148.11,148.05,16.8858]
[1726932186674,0.12549,148.1,148.06,6.7535]
[1726932189683,28.0676,148.12,148.07,1.35054598]
[1726932189884,0.12549,148.11,148.08,6.753]
[1726932190270,33.7432,148.18,148.09,8.10292839]
[1726932190271,6.7504,148.14,148.09,8.10292839]
[1726932190472,6.7504,148.14,148.1,1.35027926]
[1726932190678,6.7504,148.14,148.1,8.10237926]
[1726932190965,6.7504,148.14,148.1,6.7521]
[1726932191178,6.7504,148.14,148.09,6.7525]
[1726932191382,1.68785071,148.13,148.09,6.7525]
[1726932191977,0.12549,148.13,148.09,6.7525]
[1726932198395,8.56423809,148.13,148.08,6.7529]
[1726932199095,6.87639,148.13,148.08,6.7529]
[1726932199603,6.87639,148.13,148.08,8.10327001]
[1726932200171,6.87639,148.13,148.08,6.7529]
[1726932200681,0.12549,148.13,148.1,6.7521]
[1726932202876,6.87539,148.15,148.11,1.3502543]
[1726932203485,6.87539,148.15,148.1,6.7521]
[1726932204504,6.87539,148.15,148.11,6.7516]
[1726932204684,28.0658,148.16,148.12,6.7512]
[1726932204887,0.12549,148.15,148.12,8.10135069]
[1726932205185,28.0658,148.16,148.13,6.7507]
[1726932205186,21.3163,148.16,148.13,6.7507]
[1726932206191,21.3163,148.16,148.12,1.35015069]
[1726932206494,21.3163,148.16,148.13,6.7507]
[1726932210207,0.12549,148.15,148.11,16.8787]
[1726932210413,1.93846093,148.15,148.1,6.7518]
[1726932210705,0.25098,148.15,148.1,6.7518]
[1726932211292,0.12549,148.13,148.1,6.7518]
[1726932212503,6.87539,148.15,148.11,1.35025542]
[1726932213090,6.87539,148.15,148.11,8.10175542]
[1726932213697,6.87539,148.15,148.11,6.7515]
[1726932214004,21.3163,148.16,148.12,8.10123987]
[1726932214208,21.3163,148.16,148.13,8.1007055]
[1726932214587,21.3163,148.16,148.13,6.7507]
[1726932216896,21.3163,148.16,148.13,8.10068359]
[1726932217103,21.3163,148.16,148.13,6.7507]
[1726932217802,21.3163,148.16,148.12,23.6287]
[1726932220506,1.81312935,148.15,148.11,6.7516]
[1726932220906,0.12549,148.15,148.11,6.7516]
[1726932221308,2.04058623,148.19,148.13,6.7505]
[1726932221309,6.7489,148.18,148.13,6.7505]
[1726932221623,0.12549,148.17,148.13,6.7505]
[1726932226217,1.68739988,148.16,148.12,6.7511]
[1726932226624,6.87539,148.15,148.11,23.6299]
[1726932226923,1.68774453,148.14,148.11,16.8782]
[1726932227224,8.43804453,148.14,148.11,16.8782]
[1726932227517,6.7503,148.14,148.11,16.8782]
[1726932228205,6.7503,148.14,148.1,6.7521]
[1726932228399,1.68783245,148.13,148.1,6.7521]
[1726932229519,1.68783245,148.13,148.08,23.6348]
[1726932229520,0.12549,148.12,148.08,23.6348]
[1726932229902,28.9331,148.14,148.09,6.7525]
[1726932230101,22.1827,148.14,148.1,8.10230979]
[1726932231102,22.1827,148.14,148.1,6.752]
[1726932231625,0.12549,148.13,148.09,6.7525]
[1726932231805,8.56423831,148.13,148.09,6.7525]
[1726932232119,6.87629,148.13,148.09,6.7525]
[1726932233114,8.56423354,148.13,148.09,6.7525]
[1726932234200,0.12549,148.13,148.1,8.1023558]
[1726932235024,22.1827,148.14,148.11,6.7515]
[1726932235220,6.5798,148.14,148.11,6.7515]
[1726932235627,6.7495,148.16,148.11,6.7515]
[1726932236414,0.12549,148.15,148.11,6.7515]
[1726932236808,0.25098,148.15,148.11,6.7515]
[1726932239329,0.12549,148.12,148.07,16.8833]
[1726932239515,1.81343383,148.12,148.07,16.8833]
[1726932240307,1.81343383,148.12,148.09,6.7526]
[1726932240909,1.81343383,148.12,148.08,6.7529]
[1726932241118,1.81343383,148.12,148.09,6.7526]
[1726932241317,0.12549,148.12,148.09,6.7526]
[1726932241634,1.81344457,148.12,148.09,6.7526]
[1726932242228,1.81344457,148.12,148.08,6.753]
[1726932242623,8.56474457,148.12,148.08,6.753]
[1726932242824,0.12549,148.12,148.08,6.753]
[1726932243024,6.7518,148.11,148.07,23.6368]
[1726932243410,0.12549,148.1,148.07,23.6368]
[1726932246635,0.12549,148.1,148.07,16.8833]
[1726932249042,6.5846,148.16,148.07,29.1496949]
[1726932249219,6.7506,148.14,148.09,6.7523]
[1726932250628,0.25098,148.13,148.09,6.7523]
[1726932253910,0.12549,148.13,148.1,8.10246064]
[1726932254939,0.12549,148.13,148.1,6.7521]
[1726932255444,6.7499,148.15,148.11,1.35025942]
[1726932255742,0.12549,148.14,148.11,8.10185942]
[1726932256539,0.12549,148.14,148.11,6.7516]
[1726932258916,0.12549,148.14,148.09,23.6331]
[1726932259337,0.12549,148.12,148.09,23.6331]
[1726932259526,6.87589,148.14,148.1,8.10245294]
[1726932260430,6.87589,148.14,148.1,6.7521]
[1726932279347,6.87589,148.14,148.09,16.881]
[1726932279348,0.12549,148.12,148.09,16.881]
[1726932280451,6.87679,148.12,148.09,16.881]
[1726932281165,6.87629,148.13,148.09,16.881]
[1726932281357,8.56424348,148.13,148.09,16.881]
[1726932282372,8.43925435,148.12,148.09,16.881]
[1726932282681,6.7526,148.09,148.05,6.7544]
[1726932282855,6.7526,148.09,148.03,17.138462]
[1726932282856,6.7541,148.06,148.03,0.250462]
[1726932283050,6.87909,148.07,148.03,0.250462]
[1726932283251,0.12549,148.07,148.03,0.250462]
[1726932283649,0.12549,148.07,148.03,1.6013967]
[1726932284369,0.12549,148.08,148.04,6.7546]
[1726932293782,6.87859,148.08,148.03,7.005762]
[1726932294175,6.87859,148.08,148.03,8.35661667]
[1726932294364,6.7522,148.1,148.05,6.754]
[1726932294569,6.7522,148.1,148.04,40.663584]
[1726932294570,0.25098,148.1,148.06,8.104407]
[1726932294881,29.5734,148.11,148.06,8.104407]
[1726932295482,6.3897,148.11,148.06,30.5011019]
[1726932295682,6.7509,148.13,148.08,6.7527]
[1726932296658,0.25098,148.12,148.08,6.7527]
[1726932297062,7.00228,148.12,148.08,6.7527]
[1726932298278,7.00228,148.12,148.07,6.7534]
[1726932300207,0.12549,148.09,148.06,16.8841]
[1726932301787,0.12549,148.09,148.06,18.23473433]
[1726932301992,16.432,148.14,148.07,1.35063266]
[1726932301993,0.12549,148.13,148.07,1.35063266]
[1726932302290,0.12549,148.12,148.08,6.753]
[1726932303296,0.12549,148.13,148.1,6.7521]
[1726932303879,0.12549,148.13,148.09,23.634]
[1726932304101,6.87629,148.13,148.09,23.634]
[1726932305702,0.12549,148.13,148.09,23.634]
[1726932306197,13.26509,148.15,148.1,6.752]
[1726932306493,0.12549,148.14,148.1,6.752]
[1726932310300,8.68930074,148.14,148.09,23.634]
[1726932311507,6.7509,148.13,148.09,23.634]
[1726932314897,0.12549,148.14,148.1,8.10233288]
[1726932316500,0.12549,148.14,148.1,6.7521]
[1726932318906,0.12549,148.14,148.09,23.634]
[1726932319213,6.87589,148.14,148.09,23.634]
[1726932320233,6.7504,148.14,148.1,8.10236068]
[1726932320391,32.9764,148.18,148.11,52.9218789]
[1726932320392,22.8531,148.18,148.11,52.9218789]
[1726932320593,22.8531,148.18,148.12,13.61626985]
[1726932320594,6.7486,148.18,148.12,13.61626985]
[1726932321007,6.7486,148.18,148.13,23.776884]
[1726932321389,7.0187269,148.19,148.18,6.7485]
[1726932321390,0.3529269,148.19,148.18,6.7485]
[1726932321992,0.3529269,148.19,148.18,42.7917789]
[1726932322190,0.3529269,148.19,148.18,30.525384]
[1726932323402,0.3529269,148.19,148.18,6.7485]
[1726932324521,0.3529269,148.19,148.16,23.6224]
[1726932325909,0.3529269,148.19,148.16,24.97206466]
[1726932326317,0.3529269,148.19,148.16,30.48945956]
[1726932326523,0.3529269,148.19,148.17,23.776884]
[1726932327321,0.3529269,148.19,148.18,6.7485]
[1726932327619,0.3529269,148.19,148.16,23.6224]
[1726932330715,0.3529269,148.19,148.16,16.8734]
[1726932330932,0.12549,148.18,148.14,6.7499]
[1726932332623,0.12549,148.18,148.13,16.8767]
[1726932332624,0.12549,148.18,148.15,6.7498]
[1726932334508,0.3529269,148.19,148.16,1.34981768]
[1726932334706,0.3529269,148.19,148.16,6.7493]
[1726932335213,0.3529269,148.19,148.17,6.7489]
[1726932335707,0.3529269,148.19,148.15,16.874]
[1726932336039,0.3529269,148.19,148.15,23.6237]
[1726932337416,0.3529269,148.19,148.17,6.7489]
[1726932340331,0.3529269,148.19,148.18,8.09807873]
[1726932340628,0.3529269,148.19,148.18,6.7485]
[1726932342803,0.3529269,148.19,148.17,23.6206]
[1726932343420,0.3529269,148.19,148.17,16.8718]
[1726932344435,0.3529269,148.19,148.17,23.6207]
[1726932348722,0.3529269,148.19,148.18,1.34962722]
[1726932348935,0.3529269,148.19,148.17,23.6207]
[1726932350438,0.3529269,148.19,148.17,16.8718]
[1726932350940,0.3529269,148.19,148.15,6.7498]
[1726932351437,0.3529269,148.19,148.16,6.7494]
[1726932353539,0.3529269,148.19,148.16,16.8731]
[1726932354314,0.3529269,148.19,148.17,6.7489]
[1726932354514,0.3529269,148.19,148.16,23.6225]
[1726932359321,0.3529269,148.19,148.18,6.7485]
[1726932363233,0.3529269,148.19,148.17,6.7489]
[1726932364749,0.3529269,148.19,148.17,8.09845793]
[1726932365426,0.3529269,148.19,148.18,6.7485]
[1726932366718,0.3529269,148.19,148.18,42.7917789]
[1726932368744,0.3529269,148.19,148.18,30.525384]
[1726932368931,0.3529269,148.19,148.18,42.7917789]
[1726932374453,0.3529269,148.19,148.18,30.525384]
[1726932377848,0.3529269,148.19,148.16,45.3917949]
[1726932377849,0.3529269,148.19,148.16,16.8731]
[1726932378638,0.3529269,148.19,148.16,23.6221]
[1726932382444,0.3529269,148.19,148.17,6.7489]
[1726932384338,0.3529269,148.19,148.16,23.6224]
[1726932386056,7.1011269,148.19,148.13,16.8764]
[1726932386355,7.1011269,148.19,148.14,23.776884]
[1726932387152,0.3529269,148.19,148.15,6.7499]
[1726932388657,0.3529269,148.19,148.16,6.7494]
[1726932390164,0.3529269,148.19,148.17,1.34966556]
[1726932392947,0.3529269,148.19,148.16,6.7494]
[1726932394169,0.3529269,148.19,148.17,1.34960132]
[1726932395869,0.3529269,148.19,148.16,6.7494]
[1726932402670,0.3529269,148.19,148.15,23.6239]
[1726932407791,0.3529269,148.19,148.16,6.7494]
[1726932414894,0.3529269,148.19,148.17,16.872]
[1726932415094,0.3529269,148.19,148.17,18.22166326]
[1726932415392,0.3529269,148.19,148.18,6.7485]
[1726932419701,0.3529269,148.19,148.18,8.09796251]
[1726932420505,0.3529269,148.19,148.17,16.872]
[1726932420700,0.3529269,148.19,148.16,6.7493]
[1726932421200,0.3529269,148.19,148.17,8.0984635]
[1726932422593,0.3529269,148.19,148.18,6.7485]
[1726932426000,0.3529269,148.19,148.18,44.14124383]
[1726932428511,0.3529269,148.19,148.18,42.7917789]
[1726932429593,0.3529269,148.19,148.18,44.14098415]
[1726932430706,0.3529269,148.19,148.18,42.7917789]
[1726932433394,0.3529269,148.19,148.18,30.525384]
[1726932434314,0.3529269,148.19,148.16,16.8732]
[1726932434615,0.3529269,148.19,148.18,6.7485]
[1726932435633,0.3529269,148.19,148.18,30.525384]
[1726932441528,0.3529269,148.19,148.18,31.87469696]
[1726932442826,0.3529269,148.19,148.18,30.525384]
[1726932443005,0.3529269,148.19,148.18,44.14109004]
[1726932444602,0.3191011,148.23,148.22,67.390384]
[1726932444802,0.3191011,148.23,148.22,81.00541388]
[1726932446401,0.3191011,148.23,148.22,81.25639388]
[1726932447119,0.3191011,148.23,148.22,79.9077589]
[1726932447428,0.3191011,148.23,148.22,81.25631956]
[1726932447802,0.3191011,148.23,148.22,79.9077589]
[1726932447999,0.3191011,148.23,148.22,96.56392061]
[1726932448316,0.3529269,148.28,148.27,59.6487789]
[1726932448924,0.3529269,148.28,148.27,79.6487789]
[1726932449224,0.3529269,148.28,148.27,81.0554824]
[1726932452931,0.3529269,148.28,148.27,48.7890875]
[1726932453423,0.3529269,148.28,148.27,23.776884]
[1726932454210,0.3529269,148.28,148.27,30.521284]
[1726932454934,0.3529269,148.28,148.25,6.7449]
[1726932455227,0.3529269,148.28,148.25,8.15179328]
[1726932455440,0.3529269,148.28,148.26,6.7449]
[1726932456820,0.3529269,148.28,148.27,31.86997722]
[1726932457033,0.3529269,148.28,148.27,44.13637212]
[1726932458132,0.3529269,148.28,148.27,42.7876789]
[1726932462437,0.3529269,148.28,148.27,30.521284]
[1726932462933,0.3529269,148.28,148.27,6.7444]
[1726932463132,7.0616011,148.32,148.27,6.7444]
[1726932463133,6.7425,148.32,148.27,6.7444]
[1726932463441,0.3222317,148.28,148.27,6.7444]
[1726932464132,0.3222317,148.28,148.27,30.521284]
[1726932471447,0.3222317,148.28,148.27,31.86985972]
[1726932472852,0.3222317,148.28,148.27,30.521284]
[1726932473951,0.3222317,148.28,148.27,31.8697249]
[1726932475245,0.3222317,148.28,148.27,44.1361198]
[1726932475440,0.3222317,148.28,148.27,64.1361198]
[1726932475637,0.3222317,148.28,148.27,80.3744198]
[1726932477659,0.3222317,148.28,148.27,79.0259789]
[1726932478030,0.3222317,148.28,148.27,80.374287]
[1726932478741,0.3222317,148.28,148.27,79.0259789]
[1726932480655,0.3222317,148.28,148.27,50.521284]
[1726932481062,0.3222317,148.28,148.27,30.521284]
[1726932481950,0.3222317,148.28,148.27,6.7444]
[1726932482248,0.3222317,148.28,148.27,8.09288614]
[1726932482760,0.3222317,148.28,148.27,20.35928104]
[1726932483339,0.3222317,148.28,148.27,44.13616504]
[1726932484232,0.3222317,148.28,148.27,64.13616504]
[1726932486360,0.3222317,148.28,148.27,42.7876789]
[1726932486658,0.3222317,148.28,148.27,62.7876789]
[1726932487359,0.3222317,148.28,148.27,64.13601665]
[1726932488060,0.3222317,148.28,148.27,70.47101665]
[1726932488262,0.3222317,148.28,148.27,70.72199665]
[1726932488669,0.3222317,148.28,148.27,69.3736589]
[1726932489334,0.3222317,148.28,148.27,70.7217613]
[1726932491852,0.250462,148.32,148.27,70.7217613]
[1726932491853,0.250462,148.32,148.31,47.375984]
[1726932492152,0.250462,148.32,148.31,60.99030495]
[1726932492553,0.250462,148.32,148.31,59.6423789]
[1726932493756,0.250462,148.32,148.31,47.375984]
[1726932498038,0.250462,148.32,148.31,48.72406446]
[1726932499765,0.250462,148.32,148.31,60.99031061]
[1726932500146,0.250462,148.32,148.31,59.6423789]
[1726932501258,0.250462,148.32,148.31,60.99031721]
[1726932502069,0.250462,148.32,148.31,47.375984]
[1726932502775,0.250462,148.32,148.31,48.7240294]
[1726932502980,0.250462,148.32,148.31,60.99042456]
[1726932503758,0.250462,148.32,148.31,59.6423789]
[1726932505271,0.250462,148.32,148.31,47.375984]
[1726932507267,0.250462,148.32,148.31,60.99038096]
[1726932510064,0.250462,148.32,148.31,81.24117264]
[1726932510273,0.250462,148.32,148.31,79.8933589]
[1726932512065,0.250462,148.32,148.31,81.24104289]
[1726932512594,0.250462,148.32,148.31,79.8933589]
[1726932514852,0.250462,148.32,148.31,79.6423789]
[1726932515753,0.250462,148.32,148.31,67.375984]
[1726932516079,0.250462,148.32,148.31,23.5991]
[1726932516281,0.250462,148.32,148.31,24.94707823]
[1726932516452,0.250462,148.32,148.31,37.21347313]
[1726932516658,0.250462,148.32,148.31,35.8654949]
[1726932517163,0.250462,148.32,148.31,59.6423789]
[1726932519573,0.250462,148.32,148.31,47.375984]
[1726932519785,0.250462,148.32,148.31,59.6423789]
[1726932521555,0.250462,148.32,148.31,16.8565]
[1726932521761,0.250462,148.32,148.3,6.7429]
[1726932521965,0.250462,148.32,148.29,6.7434]
[1726932522180,0.250462,148.32,148.3,6.7429]
[1726932522473,0.250462,148.32,148.28,16.8595]
[1726932522667,0.250462,148.32,148.28,23.6033]
[1726932522858,6.992562,148.32,148.28,23.6033]
[1726932523985,0.250462,148.32,148.28,23.6033]
[1726932524685,0.250462,148.32,148.29,23.776884]
[1726932528682,13.2437,148.31,148.26,30.521684]
[1726932528859,23.04458,148.3,148.25,25.01509328]
[1726932535809,22.7936,148.3,148.26,31.87048079]
[1726932536285,22.7936,148.3,148.26,30.521684]
[1726932537091,22.7936,148.3,148.26,23.776884]
[1726932541984,16.0505,148.3,148.25,1.40689328]
[1726932542190,1.68589214,148.29,148.25,1.40689328]
[1726932542488,6.7441,148.28,148.25,1.40689328]
[1726932542900,6.7446,148.27,148.25,1.40689328]
[1726932543713,6.7446,148.27,148.23,6.7458]
[1726932544492,6.7446,148.27,148.24,23.776884]
[1726932545898,6.7446,148.27,148.23,23.776884]
[1726932546110,7.79451863,148.26,148.21,16.8673]
[1726932546413,6.7457,148.25,148.21,23.6142]
[1726932547189,6.1083,148.26,148.21,23.6142]
[1726932547190,6.1083,148.26,148.22,8.09571658]
[1726932547717,6.1083,148.26,148.23,23.776884]
[1726932549389,12.8533,148.26,148.23,23.776884]
[1726932555729,6.7454,148.25,148.22,23.776884]
[1726932558403,6.7454,148.25,148.2,1.40736794]
[1726932558404,0.25098,148.24,148.2,1.40736794]
[1726932559533,6.87129,148.24,148.2,1.40736794]
[1726932559936,6.7471,148.21,148.2,1.40736794]
[1726932560106,6.99808,148.21,148.16,0.250462]
[1726932560305,6.87259,148.21,148.16,0.250462]
[1726932560505,6.87259,148.21,148.16,6.999762]
[1726932560840,6.87259,148.21,148.16,8.40750989]
[1726932561626,6.87259,148.21,148.17,23.776884]
[1726932564717,6.87159,148.24,148.19,6.7479]
[1726932565031,6.7463,148.23,148.19,23.776884]
[1726932565615,6.7467,148.22,148.19,23.776884]
[1726932569735,6.7467,148.22,148.18,6.7484]
[1726932570641,6.87179,148.23,148.19,1.34945275]
[1726932570940,15.17299,148.25,148.21,23.776884]
[1726932570941,15.0475,148.25,148.21,23.776884]
[1726932571319,6.7458,148.24,148.21,23.776884]
[1726932572028,15.0475,148.25,148.21,23.776884]
[1726932572029,21.7929,148.25,148.21,25.12610794]
[1726932572716,6.7458,148.24,148.21,23.776884]
[1726932573141,6.7458,148.24,148.2,23.776884]
[1726932574253,6.7458,148.24,148.2,6.7474]
[1726932574622,6.7458,148.24,148.21,23.776884]
[1726932575134,6.7458,148.24,148.21,25.12609844]
[1726932576848,6.7458,148.24,148.21,23.776884]
[1726932577839,6.7458,148.24,148.21,25.12612477]
[1726932578040,6.7454,148.25,148.21,25.12612477]
[1726932583265,21.8388,148.29,148.24,16.864]
[1726932583547,21.8388,148.29,148.25,1.34888475]
[1726932583548,6.7443,148.28,148.25,1.34888475]
[1726932584047,6.7443,148.28,148.24,23.6098]
[1726932584244,6.7443,148.28,148.25,1.34888385]
[1726932585751,6.7449,148.26,148.25,1.34888385]
[1726932585933,6.7462,148.24,148.18,15.2128]
[1726932586132,6.7462,148.24,148.19,6.7477]
[1726932587250,6.7454,148.25,148.2,6.7475]
[1726932587453,6.7454,148.25,148.21,23.776884]
[1726932589045,1.68649765,148.24,148.19,23.776884]
[1726932589258,1.93747765,148.27,148.19,23.776884]
[1726932590259,6.7463,148.23,148.19,30.524884]
[1726932590762,6.7462,148.23,148.19,23.776884]
[1726932591055,6.7459,148.24,148.2,1.34938203]
[1726932591351,6.7459,148.24,148.19,30.524784]
[1726932594232,6.7454,148.25,148.2,6.7475]
[1726932599037,6.7454,148.25,148.21,23.776884]
[1726932601738,6.7449,148.26,148.21,30.523684]
[1726932602056,8.43179139,148.25,148.21,23.776884]
[1726932602242,6.7454,148.25,148.21,23.776884]
[1726932602644,6.7459,148.24,148.2,16.8685]
[1726932602853,6.87189,148.23,148.19,23.1027]
[1726932603164,6.87189,148.23,148.18,6.7484]
[1726932604447,6.87189,148.23,148.19,23.776884]